Cogmind - Beta 17 @@@ ROGUE MODE // 2026.07.15 @ 13:37:46 Player: 3.14 Result: Destroyed by Optimus with Helical Railgun Performance ------------- Evolutions (0) 0 Regions Visited (4) 800 Robots Destroyed (30) 150 Value Destroyed (707) 707 Prototype IDs (29) 580 Alien Tech Used (0) 0 Bonus (2150) 2150 TOTAL SCORE: 4387 Bonus ------- Follower Combat Kills 33 Delivered SUBCON Basin 2000 Registered with UFD 300 Friendly Fire -183 Cogmind --------- Core Integrity 0/250 Matter 280/300 Energy 99/100 System Corruption 0% Temperature Cool (0) Movement Core (50) Location -9/Scraptown Parts ------- > --- POWER (1) -------- (None) > --- PROPULSION (2) --- (None) > --- UTILITY (2) ------ (None) > --- WEAPON (2) ------- Ripper > --- INVENTORY (5) ---- Light Treads Medium Armor Plating Improved Medium Armor Plating Powered Cannon Peak State ------------ > --- POWER ------------ Cooled Deuterium Engine > --- PROPULSION ------- Armored Treads Armored Treads > --- UTILITY ---------- Huge Storage Unit Self-contained Transmogrifier > --- WEAPON ----------- Ion Cannon Gauss Rifle > --- INVENTORY -------- Light Treads Light Treads Scrap Shield Powered Cannon Subdweller Shrapnel Launcher Ripper Makeshift Axe SUBCON Basin [Rating: 49] Favorites ----------- Power Light Ion Engine Engine Light Ion Engine Power Core Enhanced Nuclear Core Propulsion Light Treads Treads Light Treads Wheel Armored Wheel Hover Unit Cooled Aerolev Unit Utility Huge Storage Unit Device Self-contained Transmogrifier Storage Huge Storage Unit Protection Light Armor Plating Weapon Subdweller Beam Cannon Energy Gun Advanced Plasma Rifle Energy Cannon Subdweller Beam Cannon Ballistic Gun Barrage Gun Ballistic Cannon Assault Cannon Special Weapon Mining Laser Slashing Weapon Ripper Piercing Weapon Kinetic Spear Build | -11 -10 -10 -9 -9 ------- Run | Yrd Mat Sub Rec Scr Slots Evolved . | . . . . . Power . | . . . . . Propulsion . | . . . . . Utility . | . . . . . Weapon . | . . . . . Parts Attached 29 | 8 3 14 3 1 Power 3 | 1 . 2 . . Engine 3 | 1 . 2 . . Core . | . . . . . Reactor . | . . . . . Propulsion 4 | 2 . 1 1 . Treads 4 | 2 . 1 1 . Leg . | . . . . . Wheel . | . . . . . Hover . | . . . . . Flight . | . . . . . Utility 7 | 3 1 3 . . Device 3 | 2 . 1 . . Storage 3 | 1 1 1 . . Processor . | . . . . . Hackware . | . . . . . Protection 1 | . . 1 . . Artifact . | . . . . . Weapon 15 | 2 2 8 2 1 Energy Gun 2 | 1 . 1 . . Energy Cannon 2 | . . 2 . . Ballistic Gun 8 | 1 1 3 2 1 Ballistic Cannon . | . . . . . Launcher . | . . . . . Special Weapon 1 | . 1 . . . Impact Weapon . | . . . . . Slashing Weapon 2 | . . 2 . . Piercing Weapon . | . . . . . Special Melee Weapon . | . . . . . Unidentified Prototypes 1 | . . 1 . . Parts Lost 2 | . . 2 . . Power 1 | . . 1 . . Propulsion 1 | . . 1 . . Utility . | . . . . . Weapon . | . . . . . Highest Loss Streak 2 | . . 2 . . To Critical Strikes . | . . . . . Average Backups 14 | 3 14 18 7 12 Power . | . 1 . . . Propulsion 2 | 1 3 3 2 1 Utility 3 | . 3 4 1 4 Weapon 6 | 1 4 9 4 3 Tool/Special . | . . . . . Unused Backups 25 | . 2 9 . 14 Power 1 | . . 1 . . Propulsion 5 | . 2 1 . 2 Utility 8 | . . 2 . 6 Weapon 6 | . . 4 . 2 Tool/Special 5 | . . 1 . 4 Average Slot Usage (%) 98 | . 100 99 100 95 Engine 13 | . 14 13 14 12 Treads 15 | . 28 23 17 1 Wheel 3 | . . 4 10 . Hover 8 | . . . . 25 Device 11 | . 14 7 14 13 Storage 13 | . 14 14 14 13 Protection 2 | . . 6 . . Energy Gun 8 | . 9 . . 21 Energy Cannon 6 | . . 12 3 2 Ballistic Gun 11 | . 16 13 23 1 Peak Build Rating 49 | 7 8 43 49 47 Average Rating 28 | 5 7 15 44 42 On Entrance 17 | . 7 8 43 30 Avg Prop Armor Cover (%) 12 | . . 12 . . Naked Turns . | . . . . . Heaviest Build 105 | 11 27 101 103 105 Greatest Support 48 | 40 40 40 42 48 Greatest Overweight (x) 9 | . . 9 7 5 Average Overweight (x) 2 | . . 2 2 3 Largest Inventory Capacity 25 | 8 15 25 25 25 Average Capacity 23 | 7 14 24 25 24 Most Carried 25 | 6 15 25 24 17 Average Carried 18 | 4 14 21 23 14 Final Capacity 25 | 8 15 25 25 5 Final Carried 24 | 6 15 24 10 5 Transmogrified Parts 59 | . . 7 16 36 Integrity Recovered 645 | . . 77 384 184 Class Distribution -------------------- 98% | Mutant Dominant Class ---------------- Mutant | -10/Materials Mutant | -10/Subcaves Mutant | -9/Recycling Mutant | -9/Scraptown Resources | -11 -10 -10 -9 -9 ----------- Run | Yrd Mat Sub Rec Scr Matter Collected 975 | 288 . 568 109 10 Remotely . | . . . . . Salvage Created 981 | 229 . 544 208 . Parts 74 | 18 . 43 13 . Haulers Intercepted . | . . . . . Recyclers Shooed 2 | 1 . . 1 . Parts Field Recycled . | . . . . . Retrieved Matter . | . . . . . Parts Self-Destructed 23 | . . 23 . . Prevented . | . . . . . Parts Restored . | . . . . . Kills | -11 -10 -10 -9 -9 ------- Run | Yrd Mat Sub Rec Scr Combat Hostiles Destroyed 21 | . . 18 3 . Guns 11 | . . 8 3 . Cannons 10 | . . 10 . . Classes Destroyed 6 | 2 . 3 1 . Tunneler 7 | 7 . . . . Recycler 2 | 1 . . 1 . Swarmer 7 | . . 7 . . Grunt 2 | . . 2 . . Sentry 3 | . . . 3 . Subdweller 9 | . . 9 . . Best Kill Streak 3 | 3 . 3 1 . Combat Bots Only 3 | . . 3 1 . Max Kills in Single Turn 1 | 1 . 1 1 . Gunslinging . | . . . . . Exploded . | . . . . . Melee . | . . . . . Uniques/NPCs Destroyed . | . . . . . Combat | -11 -10 -10 -9 -9 -------- Run | Yrd Mat Sub Rec Scr Hostile Shots Fired 100 | . 3 84 8 5 Missed 22 | . . 21 1 . Hits 78 | . 3 63 7 5 Projectile 78 | . 3 63 7 5 AOE 1 | . . 1 . . Critical Strikes 1 | . . 1 . . Damage Taken 1377 | . 71 1004 167 135 Core 254 | . 26 110 12 106 Absorbed by Shields . | . . . . . Regen/Repaired (Parts) 57 | . . . . 57 Core Remaining (%) 100 | 100 . . . . Volleys Fired 102 | 28 9 57 8 . Largest 2 | 2 1 2 2 . Hottest 140 | 60 100 140 56 . Shots Fired 183 | 55 9 103 16 . Gun 125 | 55 . 54 16 . Cannon 42 | . . 42 . . Launcher . | . . . . . Special 16 | . 9 7 . . Kinetic 96 | 28 . 52 16 . Thermal 87 | 27 9 51 . . Explosive . | . . . . . Electromagnetic . | . . . . . Robot Hit Streak 12 | 10 . 12 6 . Robot Miss Streak 4 | 3 . 4 1 . Penetration Max . | . . . . . Secondary Targets 1 | . . 1 . . Max Gunslinging Chain 1 | . . 1 . . Shots Hit Robots 104 | 35 . 55 11 3 Core Hits 34 | 11 . 18 4 1 Critical Kills 1 | . . 1 . . Critical Parts Destroyed 1 | 1 . . . . Critical Strikes 2 | 1 . 1 . . Destroy 2 | 1 . 1 . . Melee Attacks 16 | . . 13 . 3 Impact . | . . . . . Slashing 16 | . . 13 . 3 Piercing . | . . . . . Sneak Attacks 1 | . . . . 1 Combat Hostiles . | . . . . . Follow-up Attacks . | . . . . . Damage Inflicted 1870 | 334 21 1183 195 137 Guns 1060 | 332 . 538 190 . Cannons 645 | . . 645 . . Explosions . | . . . . . Melee 137 | . . . . 137 Ramming 28 | 2 21 . 5 . Kinetic 860 | 154 . 516 190 . Thermal 845 | 178 . 667 . . Explosive . | . . . . . Electromagnetic . | . . . . . Impact . | . . . . . Slashing 137 | . . . . 137 Piercing . | . . . . . Highest Corruption . | . . . . . Average Corruption . | . . . . . Corruption Purged . | . . . . . Corruption Blocked . | . . . . . Overload Shots . | . . . . . Overflow Damage 21 | . . 21 . . Projectiles 21 | . . 21 . . Explosions . | . . . . . Melee . | . . . . . Knockbacks . | . . . . . Impact . | . . . . . Kinetic . | . . . . . Secondary . | . . . . . Self-Inflicted Damage . | . . . . . Shots . | . . . . . Rammed 8 | 1 6 . 1 . Targets Rammed 9 | 1 6 . 2 . Kicked . | . . . . . Crushed 1 | . . . 1 . Highest Temperature 104 | 40 104 36 14 . Average Temperature 25 | 19 48 15 7 . Received Heat Transfer 204 | . 6 162 36 . Siege Activations . | . . . . . Martial Activations . | . . . . . Shielding Activations . | . . . . . Robots Disrupted . | . . . . . Combat Hostiles . | . . . . . Robots Corrupted . | . . . . . Combat Hostiles . | . . . . . Parts Fried . | . . . . . Impact Corruptions . | . . . . . Robots Melted . | . . . . . Combat Hostiles . | . . . . . Parts Melted . | . . . . . Heat Transferred 1276 | 400 . 876 . . Parts Sabotaged . | . . . . . Parts Stolen . | . . . . . Parts Stripped . | . . . . . Power Chain Reactions . | . . . . . Alert | -11 -10 -10 -9 -9 ------- Run | Yrd Mat Sub Rec Scr Maximum Alert Level . | . . . . . Low Security (%) 100 | 100 100 . 100 . Level 1 . | . . . . . Level 2 . | . . . . . Level 3 . | . . . . . Level 4 . | . . . . . Level 5 . | . . . . . High Security . | . . . . . Max Security . | . . . . . Peak Influence 79 | 10 1 . 79 . Initial 79 | . . . 79 . Average 10 | 1 . . 16 . Influence Increases 590 | 40 9 290 251 . Destroy 0b10 Robot/C 260 | . . 180 80 . Destroy 0b10 Robot/NC 45 | 40 . . 5 . Destroy Leader 20 | . . 20 . . Allied During Kill 4 | . . . 4 . Successful Hack 30 | . 9 . 21 . Select Force Hacks 120 | . . . 120 . Destroy Structure 21 | . . . 21 . Lose Combat Pursuer 90 | . . 90 . . Influence Decreases 590 | 40 9 125 416 . Entered New Map 86 | . . . 86 . Time Decay 488 | 40 9 123 316 . Lost Part 2 | . . 2 . . Purge Threat 14 | . . . 14 . Squads Dispatched . | . . . . . Investigation . | . . . . . Extermination . | . . . . . Reinforcement . | . . . . . Assault . | . . . . . Garrison . | . . . . . Intercept . | . . . . . Searches Triggered . | . . . . . Construction Impeded . | . . . . . Haulers Reinforced . | . . . . . Active Scanning Responses . | . . . . . Cargo Convoy Interrupts . | . . . . . Stealth | -11 -10 -10 -9 -9 --------- Run | Yrd Mat Sub Rec Scr Distress Signals . | . . . . . Communications Jammed . | . . . . . Distress Signals . | . . . . . Times Spotted 30 | . 4 23 2 1 Peak Tracking Total 4 | . 3 4 1 2 Tactical Retreats 3 | . . 3 . . Traps | -11 -10 -10 -9 -9 ------- Run | Yrd Mat Sub Rec Scr Traps Triggered . | . . . . . Indirectly . | . . . . . Trap Hack Attempts . | . . . . . Triggered . | . . . . . Disarmed . | . . . . . Reprogrammed . | . . . . . Reused . | . . . . . Traps Extracted . | . . . . . Installed . | . . . . . Triggered . | . . . . . Machines | -11 -10 -10 -9 -9 ---------- Run | Yrd Mat Sub Rec Scr Machines Disabled 1 | . . 1 . . Max in Single Turn 1 | . . 1 . . Machines Repaired . | . . . . . Machines Dismantled . | . . . . . Machines Sabotaged . | . . . . . Overloaded Fab Kills . | . . . . . Hacking | -11 -10 -10 -9 -9 --------- Run | Yrd Mat Sub Rec Scr Machines Accessed 16 | . 1 4 9 2 Terminals 6 | . 1 . 5 . Fabricators . | . . . . . Repair Stations . | . . . . . Recycling Units 4 | . . . 4 . Scanalyzers . | . . . . . Garrison Access . | . . . . . Total Hacks 53 | . 2 8 23 20 Successful 42 | . 2 8 12 20 Failed 11 | . . . 11 . Catastrophic . | . . . . . Database Lockouts . | . . . . . Manual 21 | . 1 . 20 . Terminals 19 | . 2 . 17 . Fabricators . | . . . . . Repair Stations . | . . . . . Recycling Units 6 | . . . 6 . Scanalyzers . | . . . . . Garrison Access . | . . . . . Terminal Hacks 31 | . 1 8 2 20 Record 25 | . . 5 . 20 Prototype ID Bank 1 | . 1 . . . Open Door 1 | . . 1 . . Terminal Index 1 | . . . 1 . Unreport Threat 1 | . . . 1 . Proto ID Catalog 1 | . . 1 . . Release Object 1 | . . 1 . . Fabricator Hacks . | . . . . . Repair Station Hacks . | . . . . . Recycling Unit Hacks . | . . . . . Scanalyzer . | . . . . . Garrison Access Hacks . | . . . . . Unauthorized Hacks 11 | . 1 . 10 . Terminals 7 | . 1 . 6 . Botnet 1 | . . . 1 . Skim 6 | . 1 . 5 . Fabricators . | . . . . . Repair Stations . | . . . . . Recycling Units 4 | . . . 4 . Tunnel 4 | . . . 4 . Scanalyzers . | . . . . . Garrison Access . | . . . . . Data Cores Recovered . | . . . . . Used . | . . . . . Hacking Detections 7 | . 1 . 6 . Full Trace Events . | . . . . . Feedback Events . | . . . . . Feedback Blocked . | . . . . . Robot Schematics Acquired . | . . . . . Robots Built . | . . . . . Authchips . | . . . . . Time . | . . . . . Total Robot Build Rating . | . . . . . Part Schematics Acquired . | . . . . . Parts Built . | . . . . . Authchips . | . . . . . Time . | . . . . . Total Part Build Rating . | . . . . . Part Studies Acquired . | . . . . . Parts Repaired . | . . . . . Time . | . . . . . Parts Recycled . | . . . . . Recycled Matter . | . . . . . Retrieved Matter . | . . . . . Retrieved Components . | . . . . . Parts Scanalyzed . | . . . . . Part Schematics Acquired . | . . . . . Parts Damaged . | . . . . . Bothacking | -11 -10 -10 -9 -9 ------------ Run | Yrd Mat Sub Rec Scr Used RIF Installer . | . . . . . Robots Hacked . | . . . . . Non-combat . | . . . . . Combat . | . . . . . Robot Hacks Applied . | . . . . . Relay Couplers Released . | . . . . . Fabnet Peak Effective % . | . . . . . Robots Rewired 6 | . . . 6 . Allies Hacked . | . . . . . Hacks Repelled . | . . . . . Allies | -11 -10 -10 -9 -9 -------- Run | Yrd Mat Sub Rec Scr Total Allies 6 | . . . 6 . Largest Group 6 | . . . 6 1 Highest-Rated Group 91 | . . . 91 34 Highest-Rated Ally 34 | . . . 34 34 Total Orders . | . . . . . Ally Attacks 13 | . . . 11 2 Total Damage 382 | . . . 255 127 Kills 1 | . . . 1 . Allies Corrupted . | . . . . . Allies Melted . | . . . . . Intel | -11 -10 -10 -9 -9 ------- Run | Yrd Mat Sub Rec Scr Active Infowar (turns) 1849 | 153 506 1190 . . Seismic 1849 | 153 506 1190 . . Robot Analysis Total . | . . . . . Derelict Logs Recovered 4 | . . 2 . 2 Drone Launches . | . . . . . Drone Recoveries . | . . . . . Exploration | -11 -10 -10 -9 -9 ------------- Run | Yrd Mat Sub Rec Scr Turns Passed 7829 | 262 506 3140 1260 2661 Spaces Moved 2849 | 106 153 1084 504 1002 Core 40 | 3 . . . 37 Treads 1316 | 103 153 783 229 48 Legs . | . . . . . Wheels 604 | . . 301 275 28 Hover 889 | . . . . 889 Flight . | . . . . . Fastest Speed 50 | 50 160 135 135 50 Average Speed 247 | 156 160 263 225 262 Slowest Speed 366 | 160 160 320 360 366 Overloaded Moves . | . . . . . Propulsion Burnouts . | . . . . . Robots Hopped . | . . . . . Potential Cave-ins 2 | . . 2 . . Cave-ins Triggered 1 | . . 1 . . Exploration Rate (%) 54 | 4 29 71 93 77 Regions Visited 4 Branch Regions 3 Pre-discovered Areas 14 | . . 1 7 6 Known Exits Taken . | . . . . . Unknown Exits Taken 4 | 1 1 1 1 . Scrap Searched 11 | . . 5 . 6 Spaces Dug 7 | . . 7 . . Terrain Destroyed 18 | . 1 16 1 . Melee 7 | . . 7 . . Projectile 11 | . 1 9 1 . AOE . | . . . . . Terrain Rammed . | . . . . . Walls Destroyed . | . . . . . Machines Disabled . | . . . . . Actions | -11 -10 -10 -9 -9 --------- Run | Yrd Mat Sub Rec Scr Total 3401 | 148 384 1230 607 1032 Wait 220 | . 200 9 11 . Move 2846 | 105 153 1083 503 1002 Hop . | . . . . . Pick Up 57 | 6 11 19 2 19 Fast Attach 12 | 7 . 1 1 3 Attach 5 | . . 5 . . Detach . | . . . . . Swap 23 | 1 3 17 2 . Drop 37 | . 3 26 3 5 Fire 102 | 28 9 57 8 . Melee 16 | . . 13 . 3 Ram . | . . . . . Kick . | . . . . . Crush 8 | 1 5 . 2 . Escape Stasis . | . . . . . Rewire 75 | . . . 75 . Trap . | . . . . . Miscellaneous . | . . . . . Route ------- -11/Scrapyard -10/Materials -10/Subcaves (discovered 2 exits: [*Mat] / *Rec) -9/Recycling (discovered 2 exits: [*Fac] / *Scr) -9/Scraptown (discovered 2 exits: Fac x2) History --------- Turn | Location | Event 32 | -11/Scrapyard | Discovered new exit (range 16) 263 | -11/Scrapyard | Entered Materials 304 | -10/Materials | Build established: Mutant 735 | -10/Materials | Discovered new exit (range 4) 763 | -10/Materials | Derelicts attacked the area 769 | -10/Materials | Entered Subcaves 770 | -10/Subcaves | Approached by a straggling Scientist 990 | -10/Subcaves | A swath of the cavern ceiling suddenly collapsed 1567 | -10/Subcaves | Shifting Twisted Machinery released Sub. Monowheel 1678 | -10/Subcaves | Visited Clippyterm 1687 | -10/Subcaves | Learned location of Section 7 (-2) 1687 | -10/Subcaves | Learned 40 Factory zone layouts 1732 | -10/Subcaves | Discovered new exit (range 14) 1751 | -10/Subcaves | Shifting Twisted Machinery released Sub. Optics 1762 | -10/Subcaves | Shifting Twisted Machinery released Sub. Beam Cannon 1954 | -10/Subcaves | Disturbed a concealed Subdweller 2531 | -10/Subcaves | Learned 2 Materials zone layouts 3149 | -10/Subcaves | Learned 2 Materials zone layouts 3274 | -10/Subcaves | Visited 4L-MR0's lab 3302 | -10/Subcaves | Found Prototype Device 3302 | -10/Subcaves | Identified Sfc. Transmogrifier 3313 | -10/Subcaves | Found Powered Cannon 3632 | -10/Subcaves | A swath of the cavern ceiling suddenly collapsed 3772 | -10/Subcaves | Found SUBCON Basin 3836 | -10/Subcaves | Discovered new exit (range 10) 3841 | -10/Subcaves | Core integrity fell below 50% 3900 | -10/Subcaves | Crushed by falling debris 3909 | -10/Subcaves | Entered Recycling 4192 | -9/Recycling | Lost 5 allies 4344 | -9/Recycling | Discovered new exit (range 15) 4437 | -9/Recycling | Learned Storage machine intel 4620 | -9/Recycling | Learned Storage emergency access door positions 4678 | -9/Recycling | Loaded intel: 5 recycling unit locations 4962 | -9/Recycling | Scanned before Scraplab entrance 5009 | -9/Recycling | Entered Scraplab 5166 | -9/Recycling | Discovered new exit (range 2) 5169 | -9/Recycling | Entered Scraptown 5169 | -9/Scraptown | Accompanied by 1 ally 5215 | -9/Scraptown | Heard Great Nut preacher, LISTEN AND RECITE! 5640 | -9/Scraptown | Visited Comm Corps 6088 | -9/Scraptown | Scanned Subdweller tech in exchange for log data 6096 | -9/Scraptown | Learned location of Zion (-6) 6099 | -9/Scraptown | Learned location of 2 exits from Factory 6354 | -9/Scraptown | Visited TADAMA 6400 | -9/Scraptown | Visited Cyclists 6524 | -9/Scraptown | Visited Artisan Demo Area 6576 | -9/Scraptown | Visited CR-KLE's Repair Center 6615 | -9/Scraptown | Visited CPS Storage 6715 | -9/Scraptown | CR-KLE repaired 1 part 6784 | -9/Scraptown | Visited UFD Registry 6790 | -9/Scraptown | Registered with UFD as "Fiberthruster" 6865 | -9/Scraptown | Visited Supply Room 6913 | -9/Scraptown | Visited A0-MCA Data Center 6959 | -9/Scraptown | Visited Observation Area 7134 | -9/Scraptown | Delivered Scrap Shield to a Scientist 7317 | -9/Scraptown | Visited Scrap Suit Storage 7366 | -9/Scraptown | Visited DA-N13 Charitable Foundation 7380 | -9/Scraptown | Found DCF Scrap (29 items) 7447 | -9/Scraptown | Visited Cartography Club 7487 | -9/Scraptown | Found Surveybot 17 Chip 7506 | -9/Scraptown | Learned location of Recycling (-9) 7506 | -9/Scraptown | Learned location of Proximity Caves (-3) 7506 | -9/Scraptown | Learned location of Cetus (-6) 7506 | -9/Scraptown | Learned 12 Materials zone layouts 7506 | -9/Scraptown | Learned 12 Factory zone layouts 7506 | -9/Scraptown | Learned 8 Materials zone layouts 7506 | -9/Scraptown | Learned 16 Factory zone layouts 7506 | -9/Scraptown | Learned 12 Lower Caves zone layouts 7506 | -9/Scraptown | Learned 20 Upper Caves zone layouts 7506 | -9/Scraptown | Learned 12 Proximity Caves zone layouts 7506 | -9/Scraptown | Learned location of 3 exits from Factory 7506 | -9/Scraptown | Learned location of 2 exits from Lower Caves 7506 | -9/Scraptown | Learned location of 3 exits from Upper Caves 7506 | -9/Scraptown | Identified exit to Factory 7602 | -9/Scraptown | Visited Botcube Research 7646 | -9/Scraptown | Visited Curators Association 7720 | -9/Scraptown | Visited Chapter 10 7804 | -9/Scraptown | Released all parts (6) 7825 | -9/Scraptown | Attacked by Scraptown defenders 7828 | -9/Scraptown | Core integrity fell below 20% 7830 | -9/Scraptown | Destroyed by Optimus with Helical Railgun Last Messages --------------- 07732_ 4T-HGR(c): "Come one, come all! See for yourself a fine selection of the many wondrous pieces in our collection!" 07754_ Sfc. Transmogrifier converts Cmb. Gravmag System into Imp. Gravmag System. 07764_ Sfc. Transmogrifier converts Adv. Plasma Rifle into Kinetic Spear. 07804_ Released Enh. Nuclear Core. 07804_ Released Sfc. Transmogrifier. 07804_ Released Huge Storage Unit. 07804_ Released Cmb. Gravmag System. 07804_ Released Imp. Gravmag System. 07804_ Released Kinetic Spear. 07804_ Acquired Ripper. 07824_ Sneak attack on Optimus. 07825_ ANNOUNCEMENT: Intruder alert! Defend Scraptown! 07825_ Penetrated by Slug. 07825_ Slug penetrates Machine. 07825_ Machine disabled. 07826_ Optimus: "Hey you're that new member, I knew your registry entry had something suspicious about it!" 07830_ Penetrated by Slug. Map ----- +----------------------------------------------------+ | ?????????????????????????????????????????????????# | | ??????????????????????????##???##????????????????# | | ????????????????######????#"###"#?????????????? # | | ##????????????"?""""""?#### "=" ####??????????? # | | """??????????? ? " ##?" """ "???????????# # | | """??????????"" #?#"" ""#???????????# # | | """?????????#"" #?#$" "!#???????????# # | | """#????????#"""" ###"" ""########"#### # | | """#????????#"" " ##" "#"""" ""# # | | """#????????#"""" #?#"" ""##""" ""# # | | """#????????#"" #?#&" "]##""& " # # | | #?????????" #?##"" ""##?"" "# # | | #??????????? ???#" "#??? ??# # | | #????????????# #????###### ######????# #???# # | | ####???????##### ########### ########### ##### # | | #???????#"""" """"""""""" """"""""""" """"" " | | #???????#" | | #???????#" ! | | #???????#" |=/ | | #???????#" ]|!! | | #???????#" | ! | | #?????""" """""""""" """"""""""""""""" | | #?????""" """"""""" """""""""""""""""" | | #?????""" ""###### ################"" | | #?????""" ""# ##????????#"" | | #?????""" ""# @ X"#????????#"" | | ###???""" ""# "" "" ##????????#"" | | ""#"#??"" ""# 3"" "" X"#??????###"" | | """"#??"" ""# " " ######### #"" | | ""###??##" "" "" | | ###?????#" "" "" | | #########" ""# " " ######### #"" | | ""# "" "" ""#??????###"" | | ""# "" "" ##????????#"" | | ""# X"#????????#"" | | ""# ##????????#"" | | ""###### ################"" | | """""""""""""""""""""""""""" | | """""""""""""""""""""""""""" | | | | | | | | #"??"#" | | #????#" | | #????#"""""" """"""""""" """"""""""" """""" | | # ####????####### ########### ########### ###### | | # #???????????? ??????? ???# #?# | | # #??????????# " "???""" """?#"" #?# | | # #??????????#" "" #?#""" """"##" "#?# | | # #??????????#! !! "" #?#"!" """##" """"" "#?# | +----------------------------------------------------+ Best States ------------- Heat Dissipation 25 Energy Generation 18 Energy Capacity 800 Matter Stores 300 Matter Capacity 300 Sight Range 16 Terrain Scan Density 10 Armor Coverage 150 Evasion (%) 54 Recoil Reduction 2 Item Schematics ----------------- None Robot Schematics ------------------ None Fabricated ------------ Nothing Repaired ---------- Nothing Studied --------- None Alien Tech Used ----------------- None Achievements -------------- None Challenges ------------ None Game ------ Seed MakeshiftHeartGun Manual? 0 Play Time 00:23:09 Cumulative 978.9 hours Start 2026.07.15 @ 13:08:44 End 2026.07.15 @ 13:37:46 Sessions 1 Manual Loads 0 Difficulty Rogue Special Mode None Game No. 1665 Rogue 1665 Adventurer 0 Explorer 0 Win Type - Total 95 Types 56/1/16/16/4/0/0/1/0/1 Lore% 93 Gallery% 80 Achievement% 69 Wizard Run 0 Options --------- Layout 0 ASCII 1 Keyboard 0 Movement Numpad Keybinds 1 Fullscreen 2 Font 18/SmallcapsGlow Map View 76x50 Zoom Use 0% Tactical HUD 1 Map Filters NONE Filters NONE Steam 1 RUN: 62a60f36-e1b4-4da0-b055-2e79700dfaf0